[Event "Early-Titled-Tuesday-Blitz-September-12-2023"]
[Site "Chess.com"]
[Date "2023.09.12"]
[Round "6"]
[White "jraosam"]
[Black "Nf3c5"]
[Result "1-0"]
[WhiteElo "2024"]
[BlackElo "2572"]
[TimeControl "180+1"]
[EndTime "9:06:02 PDT"]
[Termination "jraosam won on time"]

1. e4 {[%clk 0:02:50.2]} 1... c5 {[%clk 0:02:57.9]} 2. Nf3 {[%clk 0:02:47.5]}
2... Nc6 {[%clk 0:02:57.4]} 3. d4 {[%clk 0:02:46.9]} 3... cxd4 {[%clk
0:02:57.1]} 4. Nxd4 {[%clk 0:02:47.8]} 4... e5 {[%clk 0:02:57.4]} 5. Nb5 {[%clk
0:02:47.7]} 5... d6 {[%clk 0:02:57.3]} 6. N1c3 {[%clk 0:02:47.9]} 6... a6 {[%clk
0:02:56.8]} 7. Na3 {[%clk 0:02:48.3]} 7... Be6 {[%clk 0:02:57.6]} 8. Nd5 {[%clk
0:02:47.3]} 8... Bxd5 {[%clk 0:02:57.7]} 9. exd5 {[%clk 0:02:45.9]} 9... Nce7
{[%clk 0:02:57.1]} 10. c4 {[%clk 0:02:45.7]} 10... Nf6 {[%clk 0:02:56.9]} 11.
Be2 {[%clk 0:02:45.2]} 11... g6 {[%clk 0:02:52.6]} 12. O-O {[%clk 0:02:45.1]}
12... Bg7 {[%clk 0:02:53.2]} 13. Be3 {[%clk 0:02:35]} 13... Nf5 {[%clk
0:02:48.4]} 14. Nc2 {[%clk 0:02:35.1]} 14... Nxe3 {[%clk 0:02:40.3]} 15. Nxe3
{[%clk 0:02:36]} 15... O-O {[%clk 0:02:38]} 16. b4 {[%clk 0:02:32.9]} 16... b6
{[%clk 0:02:36.8]} 17. a4 {[%clk 0:02:26.8]} 17... a5 {[%clk 0:02:34.9]} 18. c5
{[%clk 0:02:02]} 18... axb4 {[%clk 0:02:15.7]} 19. c6 {[%clk 0:01:54.6]} 19...
Ne4 {[%clk 0:02:13.7]} 20. Qb3 {[%clk 0:01:41.5]} 20... Nd2 {[%clk 0:02:03.2]}
21. Qxb4 {[%clk 0:01:41.4]} 21... Nxf1 {[%clk 0:02:03.9]} 22. Bxf1 {[%clk
0:01:24.7]} 22... e4 {[%clk 0:01:59.7]} 23. Rb1 {[%clk 0:01:24.7]} 23... f5
{[%clk 0:01:58.1]} 24. Nc4 {[%clk 0:01:21.4]} 24... Bd4 {[%clk 0:01:55]} 25.
Qxd6 {[%clk 0:01:14.9]} 25... Qh4 {[%clk 0:01:14.6]} 26. Qg3 {[%clk 0:01:08.4]}
26... Qh6 {[%clk 0:00:42.6]} 27. d6 {[%clk 0:00:59.9]} 27... f4 {[%clk
0:00:42.3]} 28. Qh3 {[%clk 0:00:58.7]} 28... Qg7 {[%clk 0:00:40.3]} 29. Qe6+
{[%clk 0:00:56]} 29... Kh8 {[%clk 0:00:38.8]} 30. Qxe4 {[%clk 0:00:55.9]} 30...
Rxa4 {[%clk 0:00:28.4]} 31. Rd1 {[%clk 0:00:43.8]} 31... Bc5 {[%clk 0:00:26.3]}
32. d7 {[%clk 0:00:29]} 32... b5 {[%clk 0:00:10.3]} 33. d8=Q {[%clk 0:00:27.6]}
33... bxc4 {[%clk 0:00:10.6]} 34. c7 {[%clk 0:00:25.8]} 34... Bxf2+ {[%clk
0:00:01.2]} 35. Kxf2 {[%clk 0:00:24.3]} 1-0

[Event "Early-Titled-Tuesday-Blitz-September-12-2023"]
[Site "Chess.com"]
[Date "2023.09.12"]
[Round "6"]
[White "Lion-Al-Messi"]
[Black "Polish_fighter3000"]
[Result "0-1"]
[WhiteElo "2603"]
[BlackElo "3074"]
[TimeControl "180+1"]
[EndTime "9:06:03 PDT"]
[Termination "Polish_fighter3000 won by resignation"]

1. e4 {[%clk 0:03:00.9]} 1... e6 {[%clk 0:03:00.4]} 2. d4 {[%clk 0:03:00.4]}
2... d5 {[%clk 0:03:01]} 3. exd5 {[%clk 0:03:01.3]} 3... exd5 {[%clk 0:03:01.7]}
4. Bd3 {[%clk 0:03:01.8]} 4... Nc6 {[%clk 0:02:59.7]} 5. Nf3 {[%clk 0:03:01]}
5... Bd6 {[%clk 0:02:54.6]} 6. O-O {[%clk 0:02:59.9]} 6... Bg4 {[%clk
0:02:54.1]} 7. c3 {[%clk 0:02:59.9]} 7... Nge7 {[%clk 0:02:51.8]} 8. Nbd2 {[%clk
0:02:59.7]} 8... Qd7 {[%clk 0:02:51.5]} 9. Re1 {[%clk 0:03:00.2]} 9... f6 {[%clk
0:02:50.3]} 10. b4 {[%clk 0:02:58.6]} 10... Bf5 {[%clk 0:02:44.9]} 11. Bf1
{[%clk 0:02:57.4]} 11... g5 {[%clk 0:02:35.3]} 12. Nb3 {[%clk 0:02:54.1]} 12...
b6 {[%clk 0:02:34.2]} 13. Nc5 {[%clk 0:02:31.2]} 13... bxc5 {[%clk 0:02:32.4]}
14. dxc5 {[%clk 0:02:30.4]} 14... Be5 {[%clk 0:02:26.9]} 15. b5 {[%clk
0:02:30.2]} 15... Nd8 {[%clk 0:02:08.5]} 16. Nxe5 {[%clk 0:02:29.2]} 16... fxe5
{[%clk 0:02:08.5]} 17. Bxg5 {[%clk 0:02:24.3]} 17... Qe6 {[%clk 0:01:43]} 18.
Qa4 {[%clk 0:02:07]} 18... Nf7 {[%clk 0:01:18]} 19. b6+ {[%clk 0:01:56]} 19...
c6 {[%clk 0:01:16.5]} 20. Bxe7 {[%clk 0:01:23.2]} 20... Kxe7 {[%clk 0:01:17.4]}
21. b7 {[%clk 0:00:58.8]} 21... Rab8 {[%clk 0:01:17.3]} 22. Qxa7 {[%clk
0:00:59]} 22... Qd7 {[%clk 0:01:17.1]} 23. Qa4 {[%clk 0:00:59.2]} 23... Rxb7
{[%clk 0:01:12.2]} 24. Qh4+ {[%clk 0:00:59]} 24... Kf8 {[%clk 0:01:12.6]} 25.
Qf6 {[%clk 0:00:58.8]} 25... Qe6 {[%clk 0:01:10.3]} 26. Qh4 {[%clk 0:00:57.2]}
26... Kg7 {[%clk 0:01:08.1]} 27. Re3 {[%clk 0:00:56.3]} 27... Rhb8 {[%clk
0:01:06]} 28. Rg3+ {[%clk 0:00:53]} 28... Bg6 {[%clk 0:01:06.1]} 29. Bd3 {[%clk
0:00:48.5]} 29... Qf6 {[%clk 0:00:57.3]} 30. Qg4 {[%clk 0:00:42.4]} 30... e4
{[%clk 0:00:54.8]} 31. Bc2 {[%clk 0:00:40.3]} 31... Rb2 {[%clk 0:00:53.5]} 32.
Qd1 {[%clk 0:00:35.5]} 32... h5 {[%clk 0:00:48]} 33. a4 {[%clk 0:00:31.9]} 33...
h4 {[%clk 0:00:48]} 34. Re3 {[%clk 0:00:32.2]} 34... Ne5 {[%clk 0:00:42.8]} 35.
h3 {[%clk 0:00:32.6]} 35... Nc4 {[%clk 0:00:42]} 36. Re2 {[%clk 0:00:32]} 36...
Qxc3 {[%clk 0:00:37.1]} 37. Rc1 {[%clk 0:00:30.8]} 37... Qf6 {[%clk 0:00:31.7]}
38. Re1 {[%clk 0:00:24.1]} 38... e3 {[%clk 0:00:24.5]} 39. fxe3 {[%clk
0:00:23.4]} 39... Bxc2 {[%clk 0:00:21.7]} 40. Rxc2 {[%clk 0:00:24.3]} 40... Rxc2
{[%clk 0:00:22.3]} 41. Qxc2 {[%clk 0:00:25.2]} 41... Rb2 {[%clk 0:00:22.1]} 0-1

[Event "Early-Titled-Tuesday-Blitz-September-12-2023"]
[Site "Chess.com"]
[Date "2023.09.12"]
[Round "6"]
[White "Herzog2012"]
[Black "Kapitan_Bayan"]
[Result "1-0"]
[WhiteElo "2494"]
[BlackElo "2212"]
[TimeControl "180+1"]
[EndTime "9:06:04 PDT"]
[Termination "Herzog2012 won by checkmate"]

1. e4 {[%clk 0:03:00.9]} 1... c5 {[%clk 0:02:58.8]} 2. Nf3 {[%clk 0:02:59.5]}
2... d6 {[%clk 0:02:59.3]} 3. d4 {[%clk 0:02:57.7]} 3... cxd4 {[%clk 0:03:00.2]}
4. Nxd4 {[%clk 0:02:58.6]} 4... Nf6 {[%clk 0:02:59.5]} 5. Nc3 {[%clk 0:02:57.4]}
5... a6 {[%clk 0:02:57.4]} 6. Bg5 {[%clk 0:02:51.5]} 6... e6 {[%clk 0:02:56.9]}
7. f4 {[%clk 0:02:49.3]} 7... h6 {[%clk 0:02:57.4]} 8. Bh4 {[%clk 0:02:48]} 8...
Qb6 {[%clk 0:02:57.9]} 9. Qd2 {[%clk 0:01:57.5]} 9... Qxb2 {[%clk 0:02:53.9]}
10. Rb1 {[%clk 0:01:56.7]} 10... Qa3 {[%clk 0:02:51.7]} 11. Bd3 {[%clk 0:01:43]}
11... Nc6 {[%clk 0:02:42.8]} 12. Nxc6 {[%clk 0:01:39.2]} 12... bxc6 {[%clk
0:02:43.7]} 13. O-O {[%clk 0:01:39.7]} 13... Be7 {[%clk 0:02:35.8]} 14. Kh1
{[%clk 0:01:28.3]} 14... e5 {[%clk 0:02:26.2]} 15. fxe5 {[%clk 0:01:26.7]} 15...
dxe5 {[%clk 0:02:27.1]} 16. Ne2 {[%clk 0:01:05.2]} 16... Qxa2 {[%clk 0:02:07.8]}
17. Rb3 {[%clk 0:00:51.5]} 17... Be6 {[%clk 0:02:01.6]} 18. Rb7 {[%clk
0:00:41.3]} 18... Qa3 {[%clk 0:01:44.4]} 19. Qe3 {[%clk 0:00:21.6]} 19... O-O
{[%clk 0:01:36.4]} 20. Bxf6 {[%clk 0:00:20.3]} 20... Bxf6 {[%clk 0:01:34.8]} 21.
Rxf6 {[%clk 0:00:19.5]} 21... gxf6 {[%clk 0:01:26.5]} 22. Qxh6 {[%clk
0:00:19.2]} 22... Qa2 {[%clk 0:01:26.1]} 23. Qxf6 {[%clk 0:00:15.5]} 23... Qa1+
{[%clk 0:01:19.9]} 24. Ng1 {[%clk 0:00:14.8]} 24... Rfb8 {[%clk 0:01:06.9]} 25.
Qg5+ {[%clk 0:00:13.1]} 25... Kf8 {[%clk 0:01:06.5]} 26. Qe7+ {[%clk 0:00:12.1]}
26... Kg8 {[%clk 0:01:02.4]} 27. Qg5+ {[%clk 0:00:12.1]} 27... Kf8 {[%clk
0:01:00]} 28. Qh6+ {[%clk 0:00:12.2]} 28... Kg8 {[%clk 0:00:52.6]} 29. Rc7
{[%clk 0:00:05.8]} 29... Qd1 {[%clk 0:00:26.8]} 30. Qg5+ {[%clk 0:00:05.9]}
30... Kh7 {[%clk 0:00:26.5]} 31. Be2 {[%clk 0:00:04.8]} 31... Qd8 {[%clk
0:00:22]} 32. Qh5+ {[%clk 0:00:03.9]} 32... Kg7 {[%clk 0:00:21.2]} 33. Qxe5+
{[%clk 0:00:04.4]} 33... Kf8 {[%clk 0:00:17.4]} 34. Qh8# {[%clk 0:00:03.6]} 1-0

[Event "Early-Titled-Tuesday-Blitz-September-12-2023"]
[Site "Chess.com"]
[Date "2023.09.12"]
[Round "6"]
[White "Alex_Banzea"]
[Black "valemava"]
[Result "1-0"]
[WhiteElo "2621"]
[BlackElo "2293"]
[TimeControl "180+1"]
[EndTime "9:06:04 PDT"]
[Termination "Alex_Banzea won by checkmate"]

1. d4 {[%clk 0:01:57.7]} 1... c6 {[%clk 0:02:57.5]} 2. Nc3 {[%clk 0:01:55.1]}
2... b5 {[%clk 0:02:57.2]} 3. e4 {[%clk 0:01:49.9]} 3... b4 {[%clk 0:02:56.6]}
4. Nce2 {[%clk 0:01:39.4]} 4... Ba6 {[%clk 0:02:56.1]} 5. a3 {[%clk 0:01:31.2]}
5... bxa3 {[%clk 0:02:52.3]} 6. Rxa3 {[%clk 0:01:32.1]} 6... e6 {[%clk
0:02:44.1]} 7. Ra1 {[%clk 0:01:24.5]} 7... Nf6 {[%clk 0:02:43.5]} 8. e5 {[%clk
0:01:17.5]} 8... Nd5 {[%clk 0:02:42.8]} 9. Nf3 {[%clk 0:01:11.6]} 9... Be7
{[%clk 0:02:42.1]} 10. c3 {[%clk 0:01:10.8]} 10... O-O {[%clk 0:02:41.4]} 11. h4
{[%clk 0:01:11.4]} 11... h6 {[%clk 0:02:40]} 12. g4 {[%clk 0:00:50.5]} 12... c5
{[%clk 0:02:32.9]} 13. g5 {[%clk 0:00:47.8]} 13... h5 {[%clk 0:02:32.7]} 14.
Rxa6 {[%clk 0:00:42.2]} 14... Nxa6 {[%clk 0:02:31.8]} 15. Ng3 {[%clk 0:00:42.6]}
15... Qa5 {[%clk 0:02:23.3]} 16. Nxh5 {[%clk 0:00:36.1]} 16... cxd4 {[%clk
0:02:23.1]} 17. Nxd4 {[%clk 0:00:09]} 17... Nxc3 {[%clk 0:02:13.5]} 18. bxc3
{[%clk 0:00:08]} 18... Qxc3+ {[%clk 0:02:12.7]} 19. Qd2 {[%clk 0:00:07.9]} 19...
Qc5 {[%clk 0:02:11.7]} 20. f4 {[%clk 0:00:05.7]} 20... Nb4 {[%clk 0:02:09.7]}
21. Nf6+ {[%clk 0:00:04.2]} 21... Bxf6 {[%clk 0:02:07.4]} 22. gxf6 {[%clk
0:00:05.1]} 22... Qxd4 {[%clk 0:02:04.8]} 23. Qg2 {[%clk 0:00:04.9]} 23... g6
{[%clk 0:02:00.5]} 24. h5 {[%clk 0:00:04.9]} 24... Qc3+ {[%clk 0:01:52.2]} 25.
Bd2 {[%clk 0:00:04.8]} 25... Qa1+ {[%clk 0:01:49.7]} 26. Kf2 {[%clk 0:00:02.5]}
26... Qb1 {[%clk 0:01:48.2]} 27. hxg6 {[%clk 0:00:01.6]} 27... Qxg6 {[%clk
0:01:47.7]} 28. Qh2 {[%clk 0:00:02]} 28... Nd3+ {[%clk 0:00:04.5]} 29. Bxd3
{[%clk 0:00:02.1]} 29... Qh5 {[%clk 0:00:02.4]} 30. Qxh5 {[%clk 0:00:02]} 30...
Rfb8 {[%clk 0:00:02.7]} 31. Qh8# {[%clk 0:00:02.9]} 1-0

[Event "Early-Titled-Tuesday-Blitz-September-12-2023"]
[Site "Chess.com"]
[Date "2023.09.12"]
[Round "6"]
[White "Pingah9"]
[Black "MightyGMpretender"]
[Result "1-0"]
[WhiteElo "2579"]
[BlackElo "2791"]
[TimeControl "180+1"]
[EndTime "9:06:07 PDT"]
[Termination "Pingah9 won on time"]

1. e4 {[%clk 0:03:00.9]} 1... g6 {[%clk 0:02:56.5]} 2. h4 {[%clk 0:03:00.1]}
2... d5 {[%clk 0:02:54.8]} 3. exd5 {[%clk 0:02:59.3]} 3... Nf6 {[%clk
0:02:55.2]} 4. c4 {[%clk 0:02:50.9]} 4... c6 {[%clk 0:02:55]} 5. dxc6 {[%clk
0:02:50.5]} 5... Nxc6 {[%clk 0:02:54.9]} 6. Nf3 {[%clk 0:02:49.6]} 6... Bg4
{[%clk 0:02:54]} 7. Be2 {[%clk 0:02:48.3]} 7... Bg7 {[%clk 0:02:47]} 8. Nc3
{[%clk 0:02:47.5]} 8... O-O {[%clk 0:02:46.8]} 9. d3 {[%clk 0:02:46.6]} 9... Qd7
{[%clk 0:02:23.6]} 10. Be3 {[%clk 0:02:39.8]} 10... Rad8 {[%clk 0:02:14.8]} 11.
Qd2 {[%clk 0:02:27.7]} 11... Rfe8 {[%clk 0:01:56.7]} 12. Rd1 {[%clk 0:02:20.3]}
12... e5 {[%clk 0:01:51.1]} 13. O-O {[%clk 0:02:18.8]} 13... Nd4 {[%clk
0:01:16.7]} 14. Bxd4 {[%clk 0:01:34]} 14... exd4 {[%clk 0:01:14.6]} 15. Nb5
{[%clk 0:01:34]} 15... Nh5 {[%clk 0:00:54.1]} 16. Rfe1 {[%clk 0:01:26.9]} 16...
a6 {[%clk 0:00:54.2]} 17. Na3 {[%clk 0:01:22.9]} 17... h6 {[%clk 0:00:37.6]} 18.
c5 {[%clk 0:01:13.7]} 18... Qc7 {[%clk 0:00:35.9]} 19. b4 {[%clk 0:01:10.5]}
19... Nf4 {[%clk 0:00:35.8]} 20. Nc4 {[%clk 0:01:05.2]} 20... Nxe2+ {[%clk
0:00:27.5]} 21. Rxe2 {[%clk 0:01:06.1]} 21... Bxf3 {[%clk 0:00:27.8]} 22. gxf3
{[%clk 0:01:05]} 22... Rxe2 {[%clk 0:00:28.2]} 23. Qxe2 {[%clk 0:01:04.7]} 23...
Bf6 {[%clk 0:00:21.5]} 24. Qe4 {[%clk 0:00:56]} 24... Kg7 {[%clk 0:00:21.3]} 25.
Nd6 {[%clk 0:00:49.8]} 25... Qd7 {[%clk 0:00:18.2]} 26. Re1 {[%clk 0:00:38.5]}
26... Kf8 {[%clk 0:00:15.2]} 27. Nxb7 {[%clk 0:00:28.7]} 27... Rb8 {[%clk
0:00:08.7]} 28. c6 {[%clk 0:00:28.8]} 28... Qh3 {[%clk 0:00:07.6]} 29. Qf4
{[%clk 0:00:24.4]} 29... Kg7 {[%clk 0:00:01.6]} 30. Qxb8 {[%clk 0:00:23]} 30...
Qxf3 {[%clk 0:00:02.3]} 31. Qg3 {[%clk 0:00:18.6]} 31... Qxc6 {[%clk 0:00:02.9]}
32. Nd6 {[%clk 0:00:17.6]} 32... Qc3 {[%clk 0:00:02.6]} 33. Kf1 {[%clk
0:00:14.8]} 33... Kh7 {[%clk 0:00:01.7]} 34. Nxf7 {[%clk 0:00:13.9]} 34... Bg7
{[%clk 0:00:01.7]} 35. Ne5 {[%clk 0:00:13]} 1-0

[Event "Early-Titled-Tuesday-Blitz-September-12-2023"]
[Site "Chess.com"]
[Date "2023.09.12"]
[Round "6"]
[White "Zampronha1971"]
[Black "mamey78"]
[Result "1/2-1/2"]
[WhiteElo "2343"]
[BlackElo "2588"]
[TimeControl "180+1"]
[EndTime "9:06:13 PDT"]
[Termination "Game drawn - insufficient material"]

1. e4 {[%clk 0:03:00.9]} 1... e5 {[%clk 0:03:00.1]} 2. Nf3 {[%clk 0:03:01.5]}
2... Nc6 {[%clk 0:02:59.9]} 3. d4 {[%clk 0:03:02.4]} 3... exd4 {[%clk 0:03:00]}
4. Nxd4 {[%clk 0:03:03.3]} 4... Bb4+ {[%clk 0:02:57.1]} 5. c3 {[%clk 0:03:01.4]}
5... Bc5 {[%clk 0:02:57.3]} 6. Be3 {[%clk 0:02:56.8]} 6... Bb6 {[%clk
0:02:53.6]} 7. Nf5 {[%clk 0:02:55.5]} 7... g6 {[%clk 0:02:52.9]} 8. Bxb6 {[%clk
0:02:54]} 8... axb6 {[%clk 0:02:53.8]} 9. Ne3 {[%clk 0:02:53.6]} 9... Nf6 {[%clk
0:02:52.7]} 10. Nd2 {[%clk 0:02:53]} 10... d5 {[%clk 0:02:48.3]} 11. exd5 {[%clk
0:02:50.3]} 11... Nxd5 {[%clk 0:02:49.2]} 12. Nxd5 {[%clk 0:02:49.1]} 12... Qxd5
{[%clk 0:02:49.3]} 13. Qf3 {[%clk 0:02:45.8]} 13... Be6 {[%clk 0:02:40.9]} 14.
Qxd5 {[%clk 0:02:34.8]} 14... Bxd5 {[%clk 0:02:41.8]} 15. f3 {[%clk 0:02:29.6]}
15... O-O {[%clk 0:02:33.6]} 16. Bc4 {[%clk 0:02:29.9]} 16... Rfe8+ {[%clk
0:02:30.3]} 17. Kf2 {[%clk 0:02:29.7]} 17... Rad8 {[%clk 0:02:22.6]} 18. Rhe1
{[%clk 0:02:24.4]} 18... Ne5 {[%clk 0:02:21.8]} 19. Bf1 {[%clk 0:02:05.3]} 19...
Kg7 {[%clk 0:02:18.7]} 20. Nb3 {[%clk 0:02:02.3]} 20... Bxb3 {[%clk 0:01:51.5]}
21. axb3 {[%clk 0:02:01.5]} 21... Rd2+ {[%clk 0:01:52.1]} 22. Kg3 {[%clk
0:01:54.7]} 22... Re7 {[%clk 0:01:50.2]} 23. f4 {[%clk 0:01:49.7]} 23... Nc6
{[%clk 0:01:50.3]} 24. Rxe7 {[%clk 0:01:50.5]} 24... Nxe7 {[%clk 0:01:50.9]} 25.
Ra7 {[%clk 0:01:45.1]} 25... Rxb2 {[%clk 0:01:36.2]} 26. Rxb7 {[%clk 0:01:44.9]}
26... Rxb3 {[%clk 0:01:36.3]} 27. Rxc7 {[%clk 0:01:40.1]} 27... Nd5 {[%clk
0:01:36.3]} 28. Rd7 {[%clk 0:01:33.4]} 28... Rxc3+ {[%clk 0:01:26.6]} 29. Kf2
{[%clk 0:01:29.9]} 29... Nxf4 {[%clk 0:01:25.1]} 30. Rb7 {[%clk 0:01:28]} 30...
Rb3 {[%clk 0:01:12.6]} 31. Rxf7+ {[%clk 0:01:18.9]} 31... Kxf7 {[%clk
0:01:13.5]} 32. Bc4+ {[%clk 0:01:18.1]} 32... Kf6 {[%clk 0:01:14.1]} 33. Bxb3
{[%clk 0:01:19]} 33... Ke5 {[%clk 0:01:14.8]} 34. Bg8 {[%clk 0:01:17.2]} 34...
h6 {[%clk 0:01:14.3]} 35. Kf3 {[%clk 0:01:17.8]} 35... b5 {[%clk 0:01:12.3]} 36.
Bf7 {[%clk 0:01:16.4]} 36... g5 {[%clk 0:01:10]} 37. Kg4 {[%clk 0:01:15.4]}
37... b4 {[%clk 0:01:09.4]} 38. g3 {[%clk 0:01:14.4]} 38... Nd5 {[%clk
0:01:09.2]} 39. Kh5 {[%clk 0:01:10.2]} 39... b3 {[%clk 0:01:02.9]} 40. Kxh6
{[%clk 0:01:04.4]} 40... b2 {[%clk 0:01:00.2]} 41. Bg6 {[%clk 0:01:04.8]} 41...
Kf6 {[%clk 0:00:55.9]} 42. Bb1 {[%clk 0:01:02.7]} 42... Nc3 {[%clk 0:00:54.4]}
43. Bc2 {[%clk 0:01:02.5]} 43... Ne2 {[%clk 0:00:52.9]} 44. h4 {[%clk
0:00:56.7]} 44... g4 {[%clk 0:00:52.1]} 45. Kh5 {[%clk 0:00:56.6]} 45... Nxg3+
{[%clk 0:00:49.2]} 46. Kxg4 {[%clk 0:00:56.1]} 46... Ne2 {[%clk 0:00:49.9]} 47.
Bb1 {[%clk 0:00:52.3]} 47... Nc3 {[%clk 0:00:46.6]} 48. Bc2 {[%clk 0:00:52.3]}
48... Nd5 {[%clk 0:00:46.6]} 49. Bb1 {[%clk 0:00:50.7]} 49... Ke5 {[%clk
0:00:44.7]} 50. h5 {[%clk 0:00:49.7]} 50... Kf6 {[%clk 0:00:45.3]} 51. Kf3
{[%clk 0:00:49]} 51... Kg5 {[%clk 0:00:44.9]} 52. Kf2 {[%clk 0:00:25.8]} 52...
Kxh5 {[%clk 0:00:41.6]} 53. Ke1 {[%clk 0:00:24.2]} 53... Kg5 {[%clk 0:00:40.1]}
54. Kd2 {[%clk 0:00:23.9]} 54... Nb6 {[%clk 0:00:37.8]} 55. Kc3 {[%clk
0:00:20.8]} 55... Kf4 {[%clk 0:00:35.1]} 56. Kxb2 {[%clk 0:00:20.7]} 1/2-1/2

[Event "Early-Titled-Tuesday-Blitz-September-12-2023"]
[Site "Chess.com"]
[Date "2023.09.12"]
[Round "6"]
[White "The_Princess_Moon"]
[Black "Chaos_Magic"]
[Result "0-1"]
[WhiteElo "2256"]
[BlackElo "2375"]
[TimeControl "180+1"]
[EndTime "9:06:13 PDT"]
[Termination "Chaos_Magic won by resignation"]

1. e4 {[%clk 0:03:00.9]} 1... e5 {[%clk 0:02:59.4]} 2. Nf3 {[%clk 0:03:00.5]}
2... Nc6 {[%clk 0:02:59.6]} 3. Nc3 {[%clk 0:03:00.6]} 3... Nf6 {[%clk
0:02:59.5]} 4. Bb5 {[%clk 0:03:01.1]} 4... Nd4 {[%clk 0:02:59.6]} 5. Bc4 {[%clk
0:03:00.2]} 5... d6 {[%clk 0:02:57.7]} 6. h3 {[%clk 0:02:59.7]} 6... Be7 {[%clk
0:02:57.7]} 7. d3 {[%clk 0:02:57.3]} 7... O-O {[%clk 0:02:57.5]} 8. Nxd4 {[%clk
0:02:56.3]} 8... exd4 {[%clk 0:02:57.4]} 9. Ne2 {[%clk 0:02:57.2]} 9... c5
{[%clk 0:02:57.7]} 10. a4 {[%clk 0:02:56.1]} 10... d5 {[%clk 0:02:57.3]} 11.
exd5 {[%clk 0:02:52.4]} 11... Nxd5 {[%clk 0:02:57.6]} 12. O-O {[%clk 0:02:52.5]}
12... Be6 {[%clk 0:02:53.2]} 13. Nf4 {[%clk 0:02:39]} 13... Nxf4 {[%clk
0:02:53]} 14. Bxf4 {[%clk 0:02:39.9]} 14... Bxc4 {[%clk 0:02:53.1]} 15. dxc4
{[%clk 0:02:40.8]} 15... Bd6 {[%clk 0:02:53.4]} 16. Qg4 {[%clk 0:02:37.3]} 16...
Bxf4 {[%clk 0:02:49.1]} 17. Qxf4 {[%clk 0:02:38.2]} 17... Re8 {[%clk 0:02:48.9]}
18. Rfe1 {[%clk 0:02:36.7]} 18... Qb6 {[%clk 0:02:48.2]} 19. b3 {[%clk
0:02:34.5]} 19... h6 {[%clk 0:02:43.9]} 20. Re5 {[%clk 0:02:31.1]} 20... Qb4
{[%clk 0:02:36.8]} 21. Rae1 {[%clk 0:02:26.8]} 21... Qxe1+ {[%clk 0:02:21]} 22.
Rxe1 {[%clk 0:02:24.6]} 22... Rxe1+ {[%clk 0:02:21.1]} 23. Kh2 {[%clk
0:02:25.2]} 23... b6 {[%clk 0:02:15.1]} 24. b4 {[%clk 0:02:11.2]} 24... cxb4
{[%clk 0:01:56.8]} 25. Qxd4 {[%clk 0:02:10.5]} 25... Re6 {[%clk 0:01:52.3]} 26.
Qd7 {[%clk 0:02:06.1]} 26... a5 {[%clk 0:01:48.3]} 27. f4 {[%clk 0:01:58.3]}
27... g6 {[%clk 0:01:43.7]} 28. f5 {[%clk 0:01:56]} 28... gxf5 {[%clk
0:01:43.4]} 29. Qd5 {[%clk 0:01:55]} 29... Rc8 {[%clk 0:01:37.9]} 30. Qxf5
{[%clk 0:01:52.7]} 30... Rxc4 {[%clk 0:01:32.7]} 31. Kh1 {[%clk 0:01:47.8]}
31... Rc3 {[%clk 0:01:29.2]} 32. Kh2 {[%clk 0:01:41.7]} 32... Rg6 {[%clk
0:01:19.5]} 33. Qe4 {[%clk 0:01:33.8]} 33... Rcg3 {[%clk 0:01:17.3]} 34. Qe8+
{[%clk 0:01:31]} 34... Kg7 {[%clk 0:01:16.1]} 35. Qe5+ {[%clk 0:01:30.6]} 35...
Kh7 {[%clk 0:01:15.9]} 36. Qxg3 {[%clk 0:01:10.9]} 36... Rxg3 {[%clk 0:01:15.3]}
37. Kxg3 {[%clk 0:01:11.8]} 37... Kg6 {[%clk 0:01:15.8]} 38. Kf4 {[%clk
0:01:06.8]} 38... Kf6 {[%clk 0:01:15.3]} 39. g4 {[%clk 0:00:59.3]} 39... Ke6
{[%clk 0:01:13.9]} 40. h4 {[%clk 0:00:49.9]} 40... Kf6 {[%clk 0:01:08.5]} 41.
Ke4 {[%clk 0:00:45.1]} 41... Ke6 {[%clk 0:01:08.7]} 42. g5 {[%clk 0:00:31.3]}
42... hxg5 {[%clk 0:01:08.3]} 43. hxg5 {[%clk 0:00:32.2]} 43... b5 {[%clk
0:01:03.9]} 44. axb5 {[%clk 0:00:30.6]} 44... a4 {[%clk 0:01:04.3]} 45. c4
{[%clk 0:00:24.3]} 45... a3 {[%clk 0:01:01.5]} 46. b6 {[%clk 0:00:24.2]} 46...
Kd6 {[%clk 0:01:00.1]} 47. c5+ {[%clk 0:00:17.7]} 47... Kc6 {[%clk 0:01:00.1]}
48. Kf5 {[%clk 0:00:14.9]} 48... a2 {[%clk 0:01:00.1]} 49. Kf6 {[%clk
0:00:15.8]} 49... a1=Q+ {[%clk 0:01:00.2]} 50. Kxf7 {[%clk 0:00:16.3]} 50...
Qf1+ {[%clk 0:00:59]} 51. Ke6 {[%clk 0:00:15.2]} 51... Qe2+ {[%clk 0:00:58.5]}
52. Kf6 {[%clk 0:00:15.5]} 52... Qf3+ {[%clk 0:00:58.6]} 53. Ke6 {[%clk
0:00:13.3]} 53... Qe3+ {[%clk 0:00:58.8]} 54. Kf6 {[%clk 0:00:13.1]} 54... Qxc5
{[%clk 0:00:58.9]} 55. g6 {[%clk 0:00:12.6]} 55... Qf2+ {[%clk 0:00:58.8]} 56.
Ke7 {[%clk 0:00:12.4]} 56... Qg3 {[%clk 0:00:58.1]} 57. g7 {[%clk 0:00:11.2]}
57... Qxg7+ {[%clk 0:00:57.7]} 0-1